bitfinex-derivatives/quotes_ETHF0:USTF0_20251225
["timestamp","ask_amount","ask_price","bid_price","bid_amount"]
[1766646489580,0.00510352,2942.4,2941.4,3.40510352]
[1766646489881,1.01924761,2942.3,2941.4,3.40510352]
[1766646490083,0.00510352,2942.4,2941.4,3.40510352]
[1766646490281,1.0192391,2942.3,2941.4,3.40510352]
[1766646490482,0.00510352,2942.4,2941.4,3.40510352]
[1766646490783,1.01920189,2942.3,2941.4,3.40510352]
[1766646490980,0.00510352,2942.4,2941.4,3.40510352]
[1766646491174,1.0192019,2942.3,2941.4,3.40510352]
[1766646491376,0.00510352,2942.4,2941.4,3.40510352]
[1766646491569,1.01916395,2942.3,2941.4,3.40510352]
[1766646491775,0.00510352,2942.4,2941.4,3.40510352]
[1766646491974,1.01916395,2942.3,2941.4,3.40510352]
[1766646492176,0.00510352,2942.4,2941.4,3.40510352]
[1766646492373,1.01913238,2942.3,2941.4,3.40510352]
[1766646492581,0.00510352,2942.4,2941.4,3.40510352]
[1766646492781,1.01913238,2942.3,2941.4,3.40510352]
[1766646492982,0.00510352,2942.4,2941.4,3.40510352]
[1766646493181,1.01913238,2942.3,2941.4,3.40510352]
[1766646493380,0.00510352,2942.4,2941.4,3.40510352]
[1766646493682,1.01910633,2942.3,2941.4,3.40510352]
[1766646493986,0.00510352,2942.4,2941.4,3.40510352]
[1766646494188,1.01910711,2942.3,2941.4,3.40510352]
[1766646494379,0.00510352,2942.4,2941.4,3.40510352]
[1766646494574,1.01908945,2942.3,2941.4,3.40510352]
[1766646494775,0.00510352,2942.4,2941.4,3.40510352]
[1766646494974,1.01908981,2942.3,2941.4,3.40510352]
[1766646495186,0.00510352,2942.4,2941.4,3.40510352]
[1766646495385,1.01908312,2942.3,2941.4,3.40510352]
[1766646495581,1.01907585,2942.2,2941.4,3.40510352]
[1766646495782,0.00510352,2942.4,2941.4,3.40510352]
[1766646495981,1.01907585,2942.3,2941.4,3.40510352]
[1766646496182,1.01907585,2942.2,2941.4,3.40510352]
[1766646496383,0.00510352,2942.4,2941.4,3.40510352]
[1766646496587,1.01906609,2942.3,2941.4,3.40510352]
[1766646496786,1.01906609,2942.2,2941.4,3.40510352]
[1766646496987,0.00510352,2942.4,2941.4,3.40510352]
[1766646497181,1.019066,2942.3,2941.4,3.40510352]
[1766646497383,1.019066,2942.2,2941.4,3.40510352]
[1766646497583,0.00510352,2942.4,2941.4,3.40510352]
[1766646497889,1.01905991,2942.3,2941.4,3.40510352]
[1766646498089,1.01905991,2942.2,2941.4,3.40510352]
[1766646498391,0.00510352,2942.4,2941.4,3.40510352]
[1766646498592,1.01905751,2942.3,2941.4,3.40510352]
[1766646498885,0.00510352,2942.4,2941.4,3.40510352]
[1766646499681,3.52e-06,2942.4,2941.4,3.40510352]
[1766646511296,3.52e-06,2942.4,2941.5,3.64203611]
[1766646511498,1.22205737,2943.6,2941.5,37.64603611]
[1766646511699,1.01359146,2943.5,2941.5,37.64603611]
[1766646512002,4.41359146,2943.4,2941.5,45.29719652]
[1766646512195,1.01359146,2943.3,2941.5,45.29719652]
[1766646512396,0.00510352,2942.7,2941.5,45.29719652]
[1766646513604,0.00510352,2942.7,2941.6,5.94]
[1766646513800,0.00510352,2942.7,2941.7,3.4]
[1766646514907,3.52e-06,2942.7,2941.7,3.4]
[1766646516606,0.00440663,2943.3,2941.8,3.81137951]
[1766646516798,0.00440663,2943.3,2941.9,8.5]
[1766646517000,0.00440663,2943.3,2942.0,3.4]
[1766646517301,0.00440663,2943.3,2942.1,5.942]
[1766646517505,0.00340232,2943.0,2942.1,5.942]
[1766646520209,0.00340232,2943.0,2942.0,1.00532375]
[1766646520507,0.00340232,2943.0,2942.2,5.942]
[1766646521908,0.00340232,2943.0,2942.0,1.00532375]
[1766646522103,0.00340232,2943.0,2942.3,5.943]
[1766646522302,0.00340232,2943.0,2942.4,3.399]
[1766646528821,2.32e-06,2943.0,2942.4,3.399]
[1766646541739,2.32e-06,2943.0,2942.0,1.00532375]
[1766646542040,2.32e-06,2943.0,2942.1,14.555]
[1766646542442,2.32e-06,2943.0,2942.2,3.399]
[1766646542634,2.32e-06,2943.0,2942.2,9.34]
[1766646544241,2.32e-06,2943.0,2942.0,1.00532375]
[1766646544542,2.32e-06,2943.0,2942.1,9.341]
[1766646549747,2.32e-06,2943.0,2942.1,10.61848915]
[1766646549949,2.32e-06,2943.0,2942.1,9.341]
[1766646552146,2.32e-06,2943.0,2942.1,1.27162287]
[1766646552449,2.32e-06,2943.0,2942.2,9.341]
[1766646563557,0.00440663,2943.3,2942.2,9.341]
[1766646565161,3.399,2943.6,2942.3,3.92833871]
[1766646566161,3.40213176,2943.6,2942.3,3.92833871]
[1766646574369,3.40213176,2943.6,2942.4,8.498]
[1766646574669,3.40213176,2943.6,2942.5,3.399]
[1766646577670,0.00313176,2943.6,2942.5,4.77481228]
[1766646580171,0.00313176,2943.6,2942.6,3.74078467]
[1766646580369,0.00313176,2943.6,2942.7,5.941]
[1766646580574,0.00313176,2943.6,2942.8,3.399]
[1766646580873,0.00313176,2943.6,2942.9,0.00510352]
[1766646586979,0.00313176,2943.6,2943.0,9.338]
[1766646587978,0.00313176,2943.6,2942.9,0.00510352]
[1766646588176,0.00313176,2943.6,2943.0,9.338]
[1766646589776,0.00313176,2943.6,2942.9,0.00510352]
[1766646589975,0.00313176,2943.6,2943.0,9.338]
[1766646593483,0.00313176,2943.6,2942.9,0.00510352]
[1766646593691,0.00313176,2943.6,2943.0,9.338]
[1766646610294,0.00313176,2943.6,2942.9,0.00510352]
[1766646610595,0.00313176,2943.6,2943.1,5.939]
[1766646612796,0.00313176,2943.6,2943.2,9.337]
[1766646613492,0.00313176,2943.6,2943.0,5.939]
[1766646613696,0.00313176,2943.6,2943.0,9.337]
[1766646641830,3.176e-05,2943.6,2943.0,9.337]
[1766646659448,3.176e-05,2943.6,2942.9,0.00510352]
[1766646659641,3.176e-05,2943.6,2943.0,0.912]
[1766646659837,3.176e-05,2943.6,2943.0,4.311]
[1766646660849,3.176e-05,2943.6,2942.9,9.34210352]
[1766646672953,3.176e-05,2943.6,2942.9,0.00510352]
[1766646677353,3.176e-05,2943.6,2942.5,1.37581228]
[1766646677558,1.00451154,2943.5,2942.3,3.399]
[1766646677763,4.40351154,2943.4,2942.3,3.399]
[1766646678064,1.00451154,2943.3,2941.9,1.17320109]
[1766646678356,1.00451154,2943.3,2942.0,3.399]
[1766646678558,0.00510352,2942.9,2942.3,0.00510352]
[1766646678753,3.399,2942.8,2942.3,0.00510352]
[1766646704274,3.399,2942.8,2942.3,3.40410352]
[1766646704882,3.2995,2942.8,2942.3,3.40410352]
[1766646705079,3.2,2942.8,2942.3,3.40410352]
[1766646705878,0.00510352,2942.9,2942.3,3.40410352]
[1766646710477,3.52e-06,2942.9,2942.3,3.40410352]
[1766646714283,3.399,2943.1,2942.3,3.40410352]
[1766646714474,5.756,2943.4,2942.3,3.40410352]
[1766646714671,1.01032453,2943.3,2942.3,3.40410352]
[1766646714882,5.756,2943.4,2942.3,3.40410352]
[1766646715081,1.01032452,2943.3,2942.3,3.40410352]
[1766646715281,5.756,2943.4,2942.3,3.40410352]
[1766646736198,5.756,2943.4,2942.3,0.00510352]
[1766646736398,5.756,2943.4,2942.4,9.336]
[1766646743103,1.01163606,2943.3,2942.4,9.336]
[1766646743296,5.756,2943.4,2942.4,9.336]
[1766646743498,1.01164434,2943.3,2942.4,9.336]
[1766646743694,5.756,2943.4,2942.4,9.336]
[1766646743902,1.01164434,2943.3,2942.4,9.336]
[1766646744103,5.756,2943.4,2942.4,9.336]
[1766646744304,1.01197674,2943.3,2942.4,9.336]
[1766646744506,5.756,2943.4,2942.4,9.336]
[1766646744706,1.01197674,2943.3,2942.4,9.336]
[1766646744905,5.756,2943.4,2942.4,9.336]
[1766646745205,1.01197674,2943.3,2942.4,9.336]
[1766646745403,5.756,2943.4,2942.4,9.336]
[1766646745606,1.01207422,2943.3,2942.4,9.336]
[1766646745795,5.756,2943.4,2942.4,9.336]
[1766646745998,1.01207422,2943.3,2942.4,9.336]
[1766646746201,5.756,2943.4,2942.4,9.336]
[1766646746401,1.01207752,2943.3,2942.4,9.336]
[1766646746603,5.756,2943.4,2942.4,9.336]
[1766646746899,1.01207748,2943.3,2942.4,9.336]
[1766646747102,5.756,2943.4,2942.4,9.336]
[1766646747303,1.01208134,2943.3,2942.4,9.336]
[1766646747502,5.756,2943.4,2942.4,9.336]
[1766646747706,1.01208139,2943.3,2942.4,9.336]
[1766646747907,5.756,2943.4,2942.4,9.336]
[1766646748109,1.01208139,2943.3,2942.4,9.336]
[1766646748306,5.756,2943.4,2942.4,9.336]
[1766646748510,1.01256844,2943.3,2942.4,9.336]
[1766646748708,5.756,2943.4,2942.4,9.336]
[1766646748907,1.01256844,2943.3,2942.4,9.336]
[1766646749109,5.756,2943.4,2942.4,9.336]
[1766646749308,1.0125747,2943.3,2942.4,9.336]
[1766646749513,5.756,2943.4,2942.4,9.336]
[1766646749713,1.0125747,2943.3,2942.4,9.336]
[1766646749913,5.756,2943.4,2942.4,9.336]
[1766646750114,1.0125747,2943.3,2942.4,9.336]
[1766646750322,5.756,2943.4,2942.4,9.336]
[1766646750524,1.01257526,2943.3,2942.4,9.336]
[1766646750720,5.756,2943.4,2942.4,9.336]
[1766646750923,1.01257526,2943.3,2942.4,9.336]
[1766646751126,5.756,2943.4,2942.4,9.336]
[1766646751323,1.01257773,2943.3,2942.4,9.336]
[1766646751524,5.756,2943.4,2942.4,9.336]
[1766646751723,1.01257773,2943.3,2942.4,9.336]
[1766646751924,5.756,2943.4,2942.4,9.336]
[1766646752222,1.01257773,2943.3,2942.4,9.336]
[1766646752421,5.756,2943.4,2942.4,9.336]
[1766646752614,1.01257797,2943.3,2942.4,9.336]
[1766646752817,5.756,2943.4,2942.4,9.336]
[1766646753016,1.01257797,2943.3,2942.4,9.336]
[1766646753215,5.756,2943.4,2942.4,9.336]
[1766646753419,1.01257803,2943.3,2942.4,9.336]
[1766646753622,5.756,2943.4,2942.4,9.336]
[1766646753828,1.01257803,2943.3,2942.4,9.336]
[1766646754026,5.756,2943.4,2942.4,9.336]
[1766646754225,1.01257803,2943.3,2942.4,9.336]
[1766646754428,5.756,2943.4,2942.4,9.336]
[1766646754628,1.01257939,2943.3,2942.5,5.936]
[1766646754828,1.01257939,2943.2,2942.5,9.335]
[1766646755017,5.756,2943.4,2942.3,0.00510352]
[1766646755219,1.01260024,2943.3,2942.5,5.936]
[1766646755429,5.756,2943.4,2942.5,5.936]
[1766646755629,1.01250597,2943.3,2942.5,5.936]
[1766646755829,5.756,2943.4,2942.5,5.936]
[1766646756024,1.01250597,2943.3,2942.5,5.936]
[1766646756227,5.756,2943.4,2942.5,5.936]
[1766646756426,1.01246029,2943.3,2942.5,5.936]
[1766646756627,5.756,2943.4,2942.5,5.936]
[1766646756828,1.01246029,2943.3,2942.5,5.936]
[1766646757128,5.756,2943.4,2942.5,5.936]
[1766646757319,1.01242672,2943.3,2942.5,5.936]
[1766646757524,5.756,2943.4,2942.5,5.936]
[1766646757720,1.01242672,2943.3,2942.5,5.936]
[1766646757932,5.756,2943.4,2942.5,5.936]
[1766646758134,1.01242672,2943.3,2942.5,5.936]
[1766646758430,5.756,2943.4,2942.5,5.936]
[1766646758632,1.01239948,2943.3,2942.5,5.936]
[1766646758835,5.756,2943.4,2942.5,5.936]
[1766646759131,1.01239948,2943.3,2942.5,5.936]
[1766646759333,5.756,2943.4,2942.5,5.936]
[1766646759533,1.01237675,2943.3,2942.5,5.936]
[1766646759726,5.756,2943.4,2942.5,5.936]
[1766646759927,1.01237675,2943.3,2942.5,5.936]
[1766646760128,5.756,2943.4,2942.5,5.936]
[1766646760337,1.01236104,2943.3,2942.5,5.936]
[1766646760536,5.756,2943.4,2942.5,5.936]
[1766646760839,5.756,2943.4,2942.4,3.399]
[1766646760840,1.01236155,2943.3,2942.6,3.399]
[1766646761029,5.756,2943.4,2942.6,3.399]
[1766646761227,1.0123625,2943.3,2942.6,3.399]
[1766646761428,5.756,2943.4,2942.6,3.399]
[1766646761633,1.01234558,2943.3,2942.6,3.399]
[1766646761825,5.756,2943.4,2942.6,3.399]
[1766646762028,1.01234558,2943.3,2942.6,3.399]
[1766646762227,5.756,2943.4,2942.6,3.399]
[1766646762434,1.01233348,2943.3,2942.6,3.399]
[1766646762635,5.756,2943.4,2942.6,3.399]
[1766646762835,1.01233348,2943.3,2942.6,3.399]
[1766646763028,5.756,2943.4,2942.6,3.399]
[1766646763228,1.01233348,2943.3,2942.3,0.00510352]
[1766646763433,5.756,2943.4,2942.4,9.335]
[1766646763624,1.01232457,2943.3,2942.4,9.335]
[1766646763925,5.756,2943.4,2942.4,9.335]
[1766646764126,1.01232405,2943.3,2942.4,9.335]
[1766646764424,5.756,2943.4,2942.4,9.335]
[1766646764735,1.01231399,2943.3,2942.4,9.335]
[1766646765035,5.756,2943.4,2942.4,9.335]
[1766646765225,1.01231399,2943.3,2942.4,9.335]
[1766646765423,1.01232021,2943.2,2942.3,0.00510352]
[1766646765628,4.41139315,2943.1,2942.3,0.00510352]
[1766646765928,1.01239315,2943.0,2942.1,3.399]
[1766646766738,0.00510352,2942.8,2942.3,0.00510352]
[1766646766938,3.40410352,2942.8,2942.3,0.00510352]
[1766646767236,3.40410352,2942.8,2942.1,3.399]
[1766646768037,3.40410352,2942.8,2942.2,0.00510352]
[1766646772146,3.40410352,2942.8,2941.5,8.498]
[1766646772147,0.17005,2942.3,2941.0,1.11410514]
[1766646772341,3.399,2942.2,2941.2,3.40165151]
[1766646772542,12.525,2942.7,2941.2,3.40165151]
[1766646772543,3.399,2942.1,2941.2,3.40165151]
[1766646773237,3.399,2942.1,2941.4,0.00510352]
[1766646779746,3.399,2942.1,2941.2,3.40265151]
[1766646780648,3.399,2942.1,2941.4,0.00510352]
[1766646787253,3.399,2942.1,2941.2,3.40265151]
[1766646787454,8.63,2942.1,2941.2,3.40265151]
[1766646788254,8.63,2942.1,2941.4,0.00510352]
[1766646799360,1.01464431,2942.0,2941.4,0.00510352]
[1766646799551,8.63,2942.1,2941.4,0.00510352]
[1766646799751,1.01464348,2942.0,2941.4,0.00510352]
[1766646799959,8.63,2942.1,2941.4,0.00510352]
[1766646800163,1.01464358,2942.0,2941.4,0.00510352]
[1766646800360,8.63,2942.1,2941.4,0.00510352]
[1766646800562,1.01527713,2942.0,2941.4,0.00510352]
[1766646800765,8.63,2942.1,2941.4,0.00510352]
[1766646801052,1.01527712,2942.0,2941.4,0.00510352]
[1766646801262,4.4174285,2941.9,2941.4,0.00510352]
[1766646801461,3.401,2941.9,2941.4,0.00510352]
[1766646814671,1.22205737,2942.3,2941.4,0.00510352]
[1766646814873,5.942,2942.1,2941.4,0.00510352]
[1766646815171,1.01701389,2942.0,2941.4,0.00510352]
[1766646815362,5.942,2942.1,2941.4,0.00510352]
[1766646815565,1.01698261,2942.0,2941.4,0.00510352]
[1766646815775,5.942,2942.1,2941.4,0.00510352]
[1766646815974,1.01698272,2942.0,2941.4,0.00510352]
[1766646816273,5.942,2942.1,2941.4,0.00510352]
[1766646816475,1.01695651,2942.0,2941.4,0.00510352]
[1766646816673,5.942,2942.1,2941.4,0.00510352]
[1766646816873,1.01695651,2942.0,2941.4,0.00510352]
[1766646817067,5.942,2942.1,2941.4,0.00510352]
[1766646817262,1.01693405,2942.0,2941.4,0.00510352]
[1766646817468,5.942,2942.1,2941.4,0.00510352]
[1766646817667,1.01693405,2942.0,2941.4,0.00510352]
[1766646817867,5.942,2942.1,2941.4,0.00510352]
[1766646818071,1.01693405,2942.0,2941.4,0.00510352]
[1766646818270,5.942,2942.1,2941.4,0.00510352]
[1766646818477,1.01691992,2942.0,2941.4,0.00510352]
[1766646818668,5.942,2942.1,2941.4,0.00510352]
[1766646818964,1.01691992,2942.0,2941.4,0.00510352]
[1766646819164,5.942,2942.1,2941.4,0.00510352]
[1766646819367,1.01690915,2942.0,2941.4,0.00510352]
[1766646819567,5.942,2942.1,2941.4,0.00510352]
[1766646819769,1.01690915,2942.0,2941.4,0.00510352]
[1766646819975,5.942,2942.1,2941.4,0.00510352]
[1766646820172,1.01690915,2942.0,2941.4,0.00510352]
[1766646820378,5.942,2942.1,2941.4,0.00510352]
[1766646820676,1.01690213,2942.0,2941.4,0.00510352]
[1766646820975,5.942,2942.1,2941.4,0.00510352]
[1766646821176,1.01690215,2942.0,2941.4,0.00510352]
[1766646821376,5.942,2942.1,2941.4,0.00510352]
[1766646821576,1.01689921,2942.0,2941.4,0.00510352]
[1766646821875,5.942,2942.1,2941.4,0.00510352]
[1766646822071,1.01689926,2942.0,2941.4,0.00510352]
[1766646822377,5.942,2942.1,2941.4,0.00510352]
[1766646822572,1.01689926,2942.0,2941.4,0.00510352]
[1766646822773,5.942,2942.1,2941.4,0.00510352]
[1766646822974,1.01689926,2942.0,2941.4,0.00510352]
[1766646823174,5.942,2942.1,2941.4,0.00510352]
[1766646823374,1.01690216,2942.0,2941.4,0.00510352]
[1766646823574,5.942,2942.1,2941.4,0.00510352]
[1766646823774,1.0169025,2942.0,2941.4,0.00510352]
[1766646823975,3.401,2942.0,2941.4,0.00510352]
[1766646831280,1.0170723,2941.9,2941.4,0.00510352]
[1766646831473,3.401,2942.0,2941.4,0.00510352]
[1766646831675,1.0170723,2941.9,2941.4,0.00510352]
[1766646831872,3.401,2942.0,2941.4,0.00510352]
[1766646832077,1.0170723,2941.9,2941.4,0.00510352]
[1766646832377,3.401,2942.0,2941.4,0.00510352]
[1766646832577,1.01710596,2941.9,2941.4,0.00510352]
[1766646832777,3.401,2942.0,2941.4,0.00510352]
[1766646832978,1.01710596,2941.9,2941.4,0.00510352]
[1766646833174,3.401,2942.0,2941.4,0.00510352]
[1766646833379,1.01715452,2941.9,2941.4,0.00510352]
[1766646833581,3.401,2942.0,2941.4,0.00510352]
[1766646833774,1.01715452,2941.9,2941.4,0.00510352]
[1766646833979,3.401,2942.0,2941.4,0.00510352]
[1766646834177,1.01715459,2941.9,2941.4,0.00510352]
[1766646834386,3.401,2942.0,2941.4,0.00510352]
[1766646834586,1.01722421,2941.9,2941.4,0.00510352]
[1766646834784,3.401,2942.0,2941.4,0.00510352]
[1766646834983,1.01722421,2941.9,2941.4,0.00510352]
[1766646835184,3.401,2942.0,2941.4,0.00510352]
[1766646835384,1.017227,2941.9,2941.4,0.00510352]
[1766646835580,3.401,2942.0,2941.4,0.00510352]
[1766646835887,1.01722665,2941.9,2941.4,0.00510352]
[1766646836188,3.401,2942.0,2941.4,0.00510352]
[1766646836485,1.01723139,2941.9,2941.4,0.00510352]
[1766646836688,3.401,2942.0,2941.4,0.00510352]
[1766646842593,3.401,2942.0,2941.2,3.40265151]
[1766646843797,3.401,2942.0,2941.3,3.401]
[1766646844002,3.401,2942.0,2941.4,3.1423]
[1766646844702,3.401,2942.0,2941.4,3.14617415]
[1766646854903,3.401,2942.2,2941.4,3.14617415]
[1766646855105,1.01470771,2942.1,2941.4,3.14617415]
[1766646855305,1.01470771,2942.0,2941.4,3.14617415]
[1766646855505,3.401,2942.2,2941.4,3.14617415]
[1766646855805,1.01467692,2942.1,2941.4,3.14617415]
[1766646856005,1.01467692,2942.0,2941.4,3.14617415]
[1766646856306,3.401,2942.2,2941.4,3.14617415]
[1766646856507,1.01465824,2942.1,2941.4,3.14617415]
[1766646856707,1.01465824,2942.0,2941.4,3.14617415]
[1766646856907,3.401,2942.2,2941.4,3.14617415]
[1766646857209,1.01465796,2942.1,2941.4,3.14617415]
[1766646857409,1.01465796,2942.0,2941.4,3.14617415]
[1766646857608,3.401,2942.2,2941.4,3.14617415]
[1766646857814,1.0146455,2942.1,2941.4,3.14617415]
[1766646858011,1.0146455,2942.0,2941.4,3.14617415]
[1766646858213,3.401,2942.2,2941.4,3.14617415]
[1766646858414,1.01464105,2942.1,2941.4,3.14617415]
[1766646858614,1.01464105,2942.0,2941.4,3.14617415]
[1766646858918,3.401,2942.2,2941.4,3.14617415]
[1766646859211,1.01464136,2942.1,2941.4,3.14617415]
[1766646859413,1.01464136,2942.0,2941.4,3.14617415]
[1766646859615,3.401,2942.2,2941.4,3.14617415]
[1766646859808,1.01464262,2942.1,2941.4,3.14617415]
[1766646860014,1.01464262,2942.0,2941.4,3.14617415]
[1766646860319,3.401,2942.2,2941.4,3.14617415]
[1766646860519,1.01464486,2942.1,2941.4,3.14617415]
[1766646860710,1.01464486,2942.0,2941.4,3.14617415]
[1766646860912,3.401,2942.2,2941.4,3.14617415]
[1766646861115,1.01464485,2942.1,2941.4,3.14617415]
[1766646861316,1.01464485,2942.0,2941.4,3.14617415]
[1766646861518,3.401,2942.2,2941.4,3.14617415]
[1766646861722,1.01464858,2942.1,2941.4,3.14617415]
[1766646861913,1.01464858,2942.0,2941.4,3.14617415]
[1766646862113,3.401,2942.2,2941.4,3.14617415]
[1766646862321,1.01465674,2942.1,2941.4,3.14617415]
[1766646862521,1.01465674,2942.0,2941.4,3.14617415]
[1766646862821,3.401,2942.2,2941.4,3.14617415]
[1766646863021,1.01465499,2942.1,2941.4,3.14617415]
[1766646863226,1.01465499,2942.0,2941.4,3.14617415]
[1766646863420,3.401,2942.2,2941.4,3.14617415]
[1766646863722,1.01466427,2942.1,2941.4,3.14617415]
[1766646863922,1.01466427,2942.0,2941.4,3.14617415]
[1766646864124,3.401,2942.2,2941.4,3.14617415]
[1766646864432,1.01467756,2942.1,2941.4,3.14617415]
[1766646864628,1.01467756,2942.0,2941.4,3.14617415]
[1766646864922,3.401,2942.2,2941.4,3.14617415]
[1766646865116,1.01467707,2942.1,2941.4,3.14617415]
[1766646865318,1.01467707,2942.0,2941.4,3.14617415]
[1766646865519,3.401,2942.2,2941.4,3.14617415]
[1766646865722,1.01469374,2942.1,2941.4,3.14617415]
[1766646866023,1.01469374,2942.0,2941.4,3.14617415]
[1766646866221,3.401,2942.2,2941.4,3.14617415]
[1766646866419,1.01471179,2942.1,2941.4,3.14617415]
[1766646866620,1.01471179,2942.0,2941.4,3.14617415]
[1766646866824,3.401,2942.2,2941.4,3.14617415]
[1766646867024,1.01471179,2942.1,2941.4,3.14617415]
[1766646867222,1.01471179,2942.0,2941.4,3.14617415]
[1766646867413,3.401,2942.2,2941.4,3.14617415]
[1766646867617,1.01471569,2942.1,2941.4,3.14617415]
[1766646867916,1.01471569,2942.0,2941.4,3.14617415]
[1766646868112,3.401,2942.2,2941.4,3.14617415]
[1766646868314,1.01471984,2942.1,2941.4,3.14617415]
[1766646868518,1.01471984,2942.0,2941.4,3.14617415]
[1766646868717,3.401,2942.2,2941.4,3.14617415]
[1766646868922,1.01403925,2942.1,2941.4,3.14617415]
[1766646869122,1.01403925,2942.0,2941.4,3.14617415]
[1766646869323,3.401,2942.2,2941.4,3.14617415]
[1766646869622,1.01404521,2942.1,2941.4,3.14617415]
[1766646869818,1.01404521,2942.0,2941.4,3.14617415]
[1766646870019,3.401,2942.2,2941.4,3.14617415]
[1766646870227,1.01404556,2942.1,2941.4,3.14617415]
[1766646870420,1.01404556,2942.0,2941.4,3.14617415]
[1766646870621,3.401,2942.2,2941.4,3.14617415]
[1766646870822,1.01404686,2942.1,2941.4,3.14617415]
[1766646871119,1.01404686,2942.0,2941.4,3.14617415]
[1766646871327,3.401,2942.2,2941.4,3.14617415]
[1766646871527,1.01404723,2942.1,2941.4,3.14617415]
[1766646871727,1.01404723,2942.0,2941.4,3.14617415]
[1766646871931,3.401,2942.2,2941.4,3.14617415]
[1766646872128,1.01404723,2942.1,2941.4,3.14617415]
[1766646872329,1.01404723,2942.0,2941.4,3.14617415]
[1766646872523,3.401,2942.2,2941.4,3.14617415]
[1766646872724,1.01404809,2942.1,2941.4,3.14617415]
[1766646872925,1.01404809,2942.0,2941.4,3.14617415]
[1766646873123,3.401,2942.2,2941.4,3.14617415]
[1766646873319,1.01404808,2942.1,2941.4,3.14617415]
[1766646873527,1.01404808,2942.0,2941.4,3.14617415]
[1766646873727,3.401,2942.2,2941.4,3.14617415]
[1766646874025,1.0140519,2942.1,2941.4,3.14617415]
[1766646874227,1.0140519,2942.0,2941.4,3.14617415]
[1766646874428,3.401,2942.2,2941.4,3.14617415]
[1766646874626,1.01406057,2942.1,2941.4,3.14617415]
[1766646874831,1.01406057,2942.0,2941.4,3.14617415]
[1766646875130,3.401,2942.2,2941.4,3.14617415]
[1766646875331,1.01406057,2942.1,2941.4,3.14617415]
[1766646875631,1.01406057,2942.0,2941.4,3.14617415]
[1766646875830,3.401,2942.2,2941.4,3.14617415]
[1766646876030,1.01406837,2942.1,2941.4,3.14617415]
[1766646876229,1.01406837,2942.0,2941.4,3.14617415]
[1766646876433,3.401,2942.2,2941.4,3.14617415]
[1766646876631,1.01407496,2942.1,2941.4,3.14617415]
[1766646876831,1.01407496,2942.0,2941.4,3.14617415]
[1766646877135,3.401,2942.2,2941.4,3.14617415]
[1766646877331,1.01407496,2942.1,2941.4,3.14617415]
[1766646877634,1.01407496,2942.0,2941.4,3.14617415]
[1766646877829,3.401,2942.2,2941.4,3.14617415]
[1766646878132,1.01408326,2942.1,2941.4,3.14617415]
[1766646878332,1.01408326,2942.0,2941.4,3.14617415]
[1766646878534,3.401,2942.2,2941.4,3.14617415]
[1766646878727,1.01408659,2942.1,2941.4,3.14617415]
[1766646878927,1.01408659,2942.0,2941.4,3.14617415]
[1766646879126,3.401,2942.2,2941.4,3.14617415]
[1766646879426,1.01408659,2942.1,2941.4,3.14617415]
[1766646879629,1.01408659,2942.0,2941.4,3.14617415]
[1766646879824,3.401,2942.2,2941.4,3.14617415]
[1766646880028,1.0140932,2942.1,2941.4,3.14617415]
[1766646880224,1.0140932,2942.0,2941.4,3.14617415]
[1766646880425,3.401,2942.2,2941.4,3.14617415]
[1766646880626,1.01410177,2942.1,2941.4,3.14617415]
[1766646880835,1.01410177,2942.0,2941.4,3.14617415]
[1766646881026,3.401,2942.2,2941.4,3.14617415]
[1766646881226,1.01410173,2942.1,2941.4,3.14617415]
[1766646881432,1.01410173,2942.0,2941.4,3.14617415]
[1766646881729,3.401,2942.2,2941.4,3.14617415]
[1766646881926,1.01411262,2942.1,2941.4,3.14617415]
[1766646882137,1.01411262,2942.0,2941.4,3.14617415]
[1766646882338,3.401,2942.2,2941.4,3.14617415]
[1766646882541,1.01412618,2942.1,2941.4,3.14617415]
[1766646882739,1.01412618,2942.0,2941.4,3.14617415]
[1766646883039,3.401,2942.2,2941.4,3.14617415]
[1766646883237,1.01412618,2942.1,2941.4,3.14617415]
[1766646883438,1.01412618,2942.0,2941.4,3.14617415]
[1766646883736,3.401,2942.2,2941.4,3.14617415]
[1766646883937,1.01414421,2942.1,2941.4,3.14617415]
[1766646884137,1.01414421,2942.0,2941.4,3.14617415]
[1766646884338,3.401,2942.2,2941.4,3.14617415]
[1766646884538,1.01417052,2942.1,2941.4,3.14617415]
[1766646884742,1.01417052,2942.0,2941.4,3.14617415]
[1766646885043,3.401,2942.2,2941.4,3.14617415]
[1766646885239,1.01417047,2942.1,2941.4,3.14617415]
[1766646885541,1.01417047,2942.0,2941.4,3.14617415]
[1766646885735,3.401,2942.2,2941.4,3.14617415]
[1766646885935,1.01417013,2942.1,2941.4,3.14617415]
[1766646886137,1.01417013,2942.0,2941.4,3.14617415]
[1766646886338,3.401,2942.2,2941.4,3.14617415]
[1766646886538,1.01417103,2942.1,2941.4,3.14617415]
[1766646886737,1.01417103,2942.0,2941.4,3.14617415]
[1766646886937,3.401,2942.2,2941.4,3.14617415]
[1766646887137,1.01417096,2942.1,2941.4,3.14617415]
[1766646887338,3.401,2942.2,2941.4,3.14617415]
[1766646887339,1.01417096,2942.0,2941.4,3.14617415]
[1766646887539,3.401,2942.2,2941.4,3.14617415]
[1766646887743,1.01417113,2942.1,2941.4,3.14617415]
[1766646887937,1.01417113,2942.0,2941.4,3.14617415]
[1766646888139,3.401,2942.2,2941.4,3.14617415]
[1766646888340,1.01417113,2942.1,2941.4,3.14617415]
[1766646888640,1.01417113,2942.0,2941.4,3.14617415]
[1766646888841,3.401,2942.2,2941.4,3.14617415]
[1766646889140,1.01417041,2942.1,2941.4,3.14617415]
[1766646889341,1.01417041,2942.0,2941.4,3.14617415]
[1766646889540,3.401,2942.2,2941.4,3.14617415]
[1766646889740,1.0141715,2942.1,2941.4,3.14617415]
[1766646889947,1.0141715,2942.0,2941.4,3.14617415]
[1766646890138,3.401,2942.2,2941.4,3.14617415]
[1766646890338,1.0141715,2942.1,2941.4,3.14617415]
[1766646890538,1.0141715,2942.0,2941.4,3.14617415]
[1766646890742,3.401,2942.2,2941.4,3.14617415]